fUSD/lending_fUSD_20260214
["ID","MTS","AMOUNT","RATE_DAILY","PERIOD"]
[405373083,1771093953982,-500.0,0.00040821,9]
[405373084,1771093953994,-500.0,0.00040821,9]
[405373085,1771093954004,-500.0,0.00040821,9]
[405373086,1771093954014,-175.72457293,0.00040821,9]
[405373087,1771093954024,-577.68,0.00040821,9]
[405373088,1771093954034,-500.0,0.00040821,9]
[405373089,1771093954043,-500.0,0.00040821,9]
[405373090,1771093954054,-500.0,0.00040821,9]
[405373091,1771093954064,-500.0,0.00040821,9]
[405373092,1771093954075,-500.0,0.00040821,9]
[405373093,1771093954084,-500.0,0.00040821,9]
[405373094,1771093954096,-500.0,0.00040821,9]
[405373095,1771093954107,-5100.22,0.00040821,9]
[405373096,1771093954119,-500.0,0.00040821,9]
[405373097,1771093954129,-10810.91,0.00040821,9]
[405373098,1771093954139,-4011.27,0.00040821,9]
[405373099,1771093954149,-4569.78,0.00040821,9]
[405373100,1771093954159,-500.0,0.00040821,9]
[405373101,1771093954171,-3982.43,0.00040821,9]
[405373102,1771093954181,-500.0,0.00040821,9]
[405373103,1771093954193,-500.0,0.00040821,9]
[405373104,1771093954203,-945.81,0.00040821,9]
[405373105,1771093954214,-300.0,0.00040821,2]
[405373106,1771093954226,-5326.62,0.00040821,9]
[405373107,1771093954238,-1374.78,0.00040821,9]
[405373108,1771093954248,-4059.63,0.00040821,9]
[405373109,1771093954258,-500.0,0.00040821,9]
[405373110,1771093954268,-3578.35,0.00040821,9]
[405373111,1771093954280,-500.0,0.00040821,9]
[405373112,1771093954292,-5981.56,0.00040821,9]
[405373113,1771093954302,-500.0,0.00040821,9]
[405373114,1771093954311,-500.0,0.00040821,9]
[405373115,1771093954321,-500.0,0.00040821,9]
[405373116,1771093954331,-5562.93,0.00040821,9]
[405373117,1771093954340,-3804.91,0.00040821,9]
[405373118,1771093954350,-500.0,0.00040821,9]
[405373119,1771093954360,-3292.7,0.00040821,9]
[405373120,1771093954373,-10011.46,0.00040821,9]
[405373121,1771093954383,-500.0,0.00040821,9]
[405373122,1771093954394,-500.0,0.00040821,9]
[405373123,1771093954404,-150.0,0.00040821,9]
[405373124,1771093954419,-5698.9,0.00040821,9]
[405373125,1771093954429,-618.1,0.00040821,9]
[405373126,1771093954439,-500.0,0.00040821,9]
[405373127,1771093954451,-500.0,0.00040821,9]
[405373128,1771093954462,-500.0,0.00040821,9]
[405373129,1771093954472,-500.0,0.00040821,9]
[405373130,1771093954483,-500.0,0.00040821,9]
[405373131,1771093954493,-500.0,0.00040821,9]
[405373132,1771093954504,-397.97006851,0.00040821,9]
[405373133,1771093954515,-3635.6,0.00040821,9]
[405373134,1771093954526,-4860.79,0.00040821,9]
[405373135,1771093954536,-585.84,0.00040821,9]
[405373136,1771093954546,-500.0,0.00040821,9]
[405373137,1771093954555,-5822.07,0.00040821,9]
[405373138,1771093954565,-500.0,0.00040821,9]
[405373139,1771093954574,-8145.86,0.00040821,9]
[405373140,1771093954584,-3702.56,0.00040821,9]
[405373141,1771093954594,-1020.67,0.00040821,9]
[405373142,1771093954604,-500.0,0.00040821,9]
[405373143,1771093954614,-644.14394822,0.00040821,9]
[405373144,1771093954625,-2809.91,0.00040821,15]
[405373145,1771093954636,-579.77,0.00040821,9]
[405373146,1771093954647,-500.0,0.00040821,9]
[405373147,1771093954657,-500.0,0.00040821,9]
[405373148,1771093954667,-692.65,0.00040821,9]
[405373149,1771093954678,-835.77,0.00040821,9]
[405373150,1771093954688,-412.17666473,0.00040821,9]
[405373151,1771093954699,-500.0,0.00040821,9]
[405373152,1771093954709,-500.0,0.00040821,9]
[405373153,1771093954722,-4321.01,0.00040821,9]
[405373154,1771093954733,-500.0,0.00040821,9]
[405373155,1771093954746,-500.0,0.00040821,9]
[405373156,1771093954757,-5541.84,0.00040821,9]
[405373157,1771093954769,-11996.33,0.00040821,9]
[405373158,1771093954779,-500.0,0.00040821,9]
[405373159,1771093954788,-500.0,0.00040821,9]
[405373160,1771093954800,-4068.1,0.00040821,9]
[405373161,1771093954810,-500.0,0.00040821,9]
[405373162,1771093954820,-505.84435967,0.00040821,9]
[405373163,1771093954829,-3498.65,0.00040821,9]
[405373164,1771093954839,-500.0,0.00040821,9]
[405373165,1771093954848,-4772.89,0.00040821,9]
[405373166,1771093954857,-3599.74,0.00040821,9]
[405373167,1771093954869,-3590.36,0.00040821,9]
[405373168,1771093954880,-500.0,0.00040821,9]
[405373169,1771093954891,-500.0,0.00040821,9]
[405373170,1771093954901,-555.53,0.00040821,9]
[405373171,1771093954911,-175.60939036,0.00040821,9]
[405373172,1771093954921,-528.53065198,0.00040821,9]
[405373173,1771093954930,-500.0,0.00040821,9]
[405373174,1771093954939,-500.0,0.00040821,9]
[405373175,1771093954949,-3986.91,0.00040821,9]
[405373176,1771093954959,-602.84,0.00040821,9]
[405373177,1771093954969,-4500.2,0.00040821,9]
[405373178,1771093954979,-500.0,0.00040821,9]
[405373179,1771093954989,-500.0,0.00040821,9]
[405373180,1771093954999,-500.0,0.00040821,9]
[405373181,1771093955008,-500.0,0.00040821,9]
[405373182,1771093955018,-500.0,0.00040821,9]
[405373183,1771093955028,-500.0,0.00040821,9]
[405373184,1771093955038,-500.0,0.00040821,9]
[405373185,1771093955049,-500.0,0.00040821,9]
[405373186,1771093955059,-17167.11,0.00040821,15]
[405373187,1771093955070,-500.0,0.00040821,9]
[405373188,1771093955080,-500.0,0.00040821,9]
[405373189,1771093955091,-500.0,0.00040821,9]
[405373190,1771093955102,-500.0,0.00040821,9]
[405373191,1771093955112,-500.0,0.00040821,9]
[405373192,1771093955124,-6987.05,0.00040821,9]
[405373193,1771093955136,-457.55946901,0.00040821,9]
[405373194,1771093955148,-792.61,0.00040821,9]
[405373195,1771093955158,-447.99500293,0.00040821,9]
[405373196,1771093955168,-3809.76,0.00040821,9]
[405373197,1771093955180,-500.0,0.00040821,9]
[405373198,1771093955189,-500.0,0.00040821,9]
[405373199,1771093955200,-1872.91,0.00040821,9]
[405373200,1771093955210,-751.97,0.00040821,9]
[405373201,1771093955221,-4301.09,0.00040821,9]
[405373202,1771093955230,-500.0,0.00040821,9]
[405373203,1771093955241,-500.0,0.00040821,9]
[405373204,1771093955252,-530.95409252,0.00040821,9]
[405373205,1771093955262,-500.0,0.00040821,9]
[405373206,1771093955272,-500.0,0.00040821,9]
[405373207,1771093955282,-500.0,0.00040821,9]
[405373208,1771093955292,-49453.89,0.00040821,9]
[405373209,1771093955301,-500.0,0.00040821,9]
[405373210,1771093955311,-514.79,0.00040821,9]
[405373211,1771093955321,-500.0,0.00040821,9]
[405373212,1771093955331,-500.0,0.00040821,9]
[405373213,1771093955340,-522.72,0.00040821,9]
[405373214,1771093955351,-500.0,0.00040821,9]
[405373215,1771093955361,-500.0,0.00040821,9]
[405373216,1771093955372,-3592.54,0.00040821,9]
[405373217,1771093955382,-500.0,0.00040821,9]
[405373218,1771093955393,-500.0,0.00040821,9]
[405373219,1771093955403,-6816.69,0.00040821,9]
[405373220,1771093955414,-6877.26,0.00040821,9]
[405373221,1771093955428,-500.0,0.00040821,9]
[405373222,1771093955438,-500.0,0.00040821,9]
[405373223,1771093955448,-3548.79,0.00040821,9]
[405373224,1771093955457,-643.83,0.00040821,9]
[405373225,1771093955468,-5429.53,0.00040821,9]
[405373226,1771093955478,-500.0,0.00040821,9]
[405373227,1771093955489,-500.0,0.00040821,9]
[405373228,1771093955499,-500.0,0.00040821,9]
[405373229,1771093955508,-500.0,0.00040821,9]
[405373230,1771093955518,-4648.43,0.00040821,9]
[405373231,1771093955529,-500.0,0.00040821,9]
[405373232,1771093955539,-500.0,0.00040821,9]
[405373233,1771093955550,-685.71,0.00040821,9]
[405373234,1771093955559,-500.0,0.00040821,9]
[405373235,1771093955569,-500.0,0.00040821,9]
[405373236,1771093955579,-1668.59,0.00040821,9]
[405373237,1771093955590,-538.42982403,0.00040821,9]
[405373238,1771093955599,-622.0,0.00040821,9]
[405373239,1771093955609,-4113.81,0.00040821,9]
[405373240,1771093955619,-500.0,0.00040821,9]
[405373241,1771093955628,-500.0,0.00040821,120]
[405373242,1771093955638,-735.58,0.00040821,9]
[405373243,1771093955647,-500.0,0.00040821,9]
[405373244,1771093955657,-1564.16,0.00040821,9]
[405373245,1771093955667,-500.0,0.00040821,9]
[405373246,1771093955677,-678.21,0.00040821,9]
[405373247,1771093955687,-2515.75,0.00040821,9]
[405373248,1771093955697,-500.0,0.00040821,9]
[405373249,1771093955706,-4400.86,0.00040821,9]
[405373250,1771093955716,-500.0,0.00040821,9]
[405373251,1771093955725,-579.75,0.00040821,9]
[405373252,1771093955735,-798.86,0.00040821,9]
[405373253,1771093955744,-500.0,0.00040821,9]
[405373254,1771093955754,-1141.19,0.00040821,9]
[405373255,1771093955763,-995.04,0.00040821,9]
[405373256,1771093955773,-9716.73,0.00040821,9]
[405373257,1771093955783,-500.0,0.00040821,9]
[405373258,1771093955792,-500.0,0.00040821,9]
[405373259,1771093955802,-322.49853954,0.00040821,9]
[405373260,1771093955811,-500.0,0.00040821,9]
[405373261,1771093955821,-4640.07,0.00040821,9]
[405373262,1771093955830,-1058.89,0.00040821,9]
[405373263,1771093955839,-4083.12,0.00040821,9]
[405373264,1771093955850,-150.0,0.00040864,7]
[405373265,1771093955859,-152.0,0.000409,120]
[405373266,1771093955869,-178.36685436,0.000409,120]
[405373267,1771093955880,-150.0,0.00040978,7]
[405373268,1771093955889,-26248.6849244,0.00040987,2]
[405373269,1771093955899,-2721.460571,0.00040987,2]
[405373270,1771093955909,-163.55907843,0.00040995,2]
[405373271,1771093955918,-7334.46302856,0.00040996,2]
[405373272,1771093955928,-231.28369723,0.00040999,35]
[405373273,1771093955938,-2395.62820092,0.00041,30]
[405373274,1771093955947,-1000.0,0.00041,55]
[405373275,1771093955957,-137495.847432,0.00041,120]
[405373276,1771093955967,-4040.51576498,0.00041,35]
[405373277,1771093955976,-967.68256866,0.00041,120]
[405373278,1771093955986,-10000.0,0.00041,120]
[405373279,1771093955996,-169.66,0.00041,120]
[405373280,1771093956005,-2822.49222,0.00041,120]
[405373281,1771093956015,-50000.0,0.00041,120]
[405373282,1771093956025,-741.56209097,0.00041,30]
[405373283,1771093956035,-15000.0,0.00041,7]
[405373284,1771093956044,-22700.0,0.00041,60]
[405373285,1771093956054,-493.03974943,0.00041,30]
[405373286,1771093956063,-7000.0,0.00041,120]
[405373287,1771093956073,-318.0,0.00041,45]
[405373288,1771093956083,-8000.0,0.00041,7]
[405373289,1771093956092,-604.12319313,0.00041,2]
[405373290,1771093956102,-198.5140333,0.00041,2]
[405373291,1771093956111,-8594.0,0.00041,2]
[405373292,1771093956120,-585.0,0.00041,2]
[405373293,1771093956130,-2500.0,0.00041,120]
[405373294,1771093956140,-585.0,0.00041,2]
[405373295,1771093956150,-253.0,0.00041,34]
[405373296,1771093956160,-499.0,0.00041,120]
[405373297,1771093956169,-2452.87,0.00041,30]
[405373298,1771093956179,-3271.05,0.00041,14]
[405373299,1771093956189,-1036.1,0.00041041,30]
[405373300,1771093956198,-405.15423072,0.00041068,120]
[405373301,1771093956207,-496.10722131,0.00041068,120]
[405373302,1771093956217,-2587.84615385,0.00041068,120]
[405373303,1771093956226,-2031.61538462,0.00041068,120]
[405373304,1771093956235,-2492.0,0.00041068,120]
[405373305,1771093956245,-2597.0,0.00041068,120]
[405373306,1771093956254,-1824.84615385,0.00041068,120]
[405373307,1771093956264,-2051.53846154,0.00041068,120]
[405373308,1771093956274,-1185.15384615,0.00041068,120]
[405373309,1771093956284,-1273.46153846,0.00041068,120]
[405373310,1771093956293,-2590.0,0.00041068,120]
[405373311,1771093956303,-2293.84615385,0.00041068,120]
[405373312,1771093956313,-1180.84615385,0.00041068,120]
[405373313,1771093956322,-1306.84615385,0.00041068,120]
[405373314,1771093956332,-1920.15384615,0.00041068,120]
[405373315,1771093956341,-887.88945625,0.00041068,120]
[405373316,1771093956352,-1338.07692308,0.00041068,120]
[405373317,1771093956444,-2606.15384615,0.00041068,120]
[405373318,1771093956455,-1905.61538462,0.00041068,120]
[405373319,1771093956465,-582.14943017,0.00041068,120]
[405373320,1771093956474,-496.1072213,0.00041068,120]
[405373321,1771093956483,-152.800091,0.00041095,120]
[405373322,1771093956494,-151.082823,0.00041095,120]
[405373323,1771093956503,-500.0,0.00041095,2]
[405373324,1771093956512,-500.0,0.00041095,120]
[405373325,1771093956522,-500.0,0.00041095,120]
[405373326,1771093956531,-500.0,0.00041095,14]
[405373327,1771093956540,-197.70527122,0.00041095,14]
[405373328,1771093956550,-500.0,0.00041095,120]
[405373329,1771093956559,-500.0,0.00041095,120]
[405373330,1771093956568,-500.0,0.00041095,120]
[405373331,1771093956577,-322.04397607,0.00041095,120]
[405373332,1771093956586,-500.0,0.00041095,120]
[405373333,1771093956596,-500.0,0.00041095,120]
[405373334,1771093956605,-500.0,0.00041095,120]
[405373335,1771093956614,-2236.17,0.00041095,120]
[405373336,1771093956624,-500.0,0.00041095,120]
[405373337,1771093956633,-181.39986113,0.00041095,120]
[405373338,1771093956643,-500.0,0.00041095,120]
[405373339,1771093956652,-500.0,0.00041095,120]
[405373340,1771093956661,-500.0,0.00041095,120]
[405373341,1771093956671,-500.0,0.00041095,120]
[405373342,1771093956681,-1499.27,0.00041095,120]
[405373343,1771093956691,-572.68088548,0.00041095,120]
[405373344,1771093956701,-500.0,0.00041095,120]
[405373345,1771093956711,-500.0,0.00041095,120]
[405373346,1771093956721,-467.52683124,0.00041095,120]
[405373347,1771093956730,-500.0,0.00041095,120]
[405373348,1771093956740,-530.55,0.00041095,120]
[405373349,1771093956749,-679.39,0.00041095,120]
[405373350,1771093956758,-500.0,0.00041095,120]
[405373351,1771093956767,-500.0,0.00041095,120]
[405373352,1771093956777,-500.0,0.00041095,120]
[405373353,1771093956787,-425.12,0.00041095,2]
[405373354,1771093956796,-500.0,0.00041095,120]
[405373355,1771093956806,-364.29518777,0.00041095,120]
[405373356,1771093956817,-500.0,0.00041095,120]
[405373357,1771093956829,-500.0,0.00041095,120]
[405373358,1771093956838,-500.0,0.00041095,120]
[405373359,1771093956848,-500.0,0.00041095,120]
[405373360,1771093956858,-500.0,0.00041095,120]
[405373361,1771093956867,-500.0,0.00041095,120]
[405373362,1771093956878,-500.0,0.00041095,120]
[405373363,1771093956887,-3818.35,0.00041095,120]
[405373364,1771093956897,-500.0,0.00041095,120]
[405373365,1771093956906,-500.0,0.00041095,120]
[405373366,1771093956915,-332.12609594,0.00041095,120]
[405373367,1771093956925,-1000.0,0.00041095,120]
[405373368,1771093956934,-1000.0,0.00041095,120]
[405373369,1771093956943,-557.12792191,0.00041095,120]
[405373370,1771093956953,-500.0,0.00041095,120]
[405373371,1771093956962,-322.91235963,0.00041095,120]
[405373372,1771093956971,-500.0,0.00041095,120]
[405373373,1771093956981,-500.0,0.00041095,120]
[405373374,1771093956991,-500.0,0.00041095,120]
[405373375,1771093957000,-500.0,0.00041095,120]
[405373376,1771093957008,-174.74683059,0.00041095,120]
[405373377,1771093957018,-716.37038655,0.00041095,120]
[405373378,1771093957028,-500.0,0.00041095,120]
[405373379,1771093957038,-500.0,0.00041095,120]
[405373380,1771093957047,-500.0,0.00041095,120]
[405373381,1771093957056,-1478.52,0.00041095,120]
[405373382,1771093957066,-500.0,0.00041095,120]
[405373383,1771093957075,-500.0,0.00041095,120]
[405373384,1771093957085,-500.0,0.00041095,120]
[405373385,1771093957094,-556.97,0.00041095,9]
[405373386,1771093957103,-556.97,0.00041095,9]
[405373387,1771093957112,-556.97,0.00041095,9]
[405373388,1771093957122,-556.97,0.00041095,9]
[405373389,1771093957131,-556.97,0.00041095,9]
[405373390,1771093957140,-556.97,0.00041095,9]
[405373391,1771093957150,-556.97,0.00041095,9]
[405373392,1771093957159,-556.97,0.00041095,9]
[405373393,1771093957169,-556.97,0.00041095,9]
[405373394,1771093957178,-556.97,0.00041095,9]
[405373395,1771093957188,-556.97,0.00041095,120]
[405373396,1771093957197,-500.0,0.00041095,120]
[405373397,1771093957206,-500.0,0.00041095,120]
[405373398,1771093957216,-500.0,0.00041095,120]
[405373399,1771093957225,-500.0,0.00041095,120]
[405373400,1771093957235,-500.0,0.00041095,120]
[405373401,1771093957244,-500.0,0.00041095,120]
[405373402,1771093957253,-3459.63,0.00041095,120]
[405373403,1771093957263,-1007.77,0.00041095,120]
[405373404,1771093957272,-1366.15,0.00041095,2]
[405373405,1771093957281,-527.56595673,0.00041095,120]
[405373406,1771093957291,-500.0,0.00041095,120]
[405373407,1771093957301,-500.0,0.00041095,120]
[405373408,1771093957310,-1397.34,0.00041095,120]
[405373409,1771093957320,-535.41070707,0.00041095,120]
[405373410,1771093957329,-500.0,0.00041095,120]
[405373411,1771093957338,-500.0,0.00041095,120]
[405373412,1771093957347,-581.99,0.00041095,120]
[405373413,1771093957357,-500.0,0.00041095,120]
[405373414,1771093957366,-500.0,0.00041095,120]
[405373415,1771093957375,-500.0,0.00041095,120]
[405373416,1771093957384,-500.0,0.00041095,120]
[405373417,1771093957394,-3781.3,0.00041095,120]
[405373418,1771093957403,-500.0,0.00041095,120]
[405373419,1771093957416,-500.0,0.00041095,120]
[405373420,1771093957425,-500.0,0.00041095,120]
[405373421,1771093957435,-155.37092089,0.00041095,120]
[405373422,1771093957444,-500.0,0.00041095,120]
[405373423,1771093957455,-500.0,0.00041095,120]
[405373424,1771093957465,-500.0,0.00041095,120]
[405373425,1771093957474,-264.43998554,0.00041095,120]
[405373426,1771093957484,-500.0,0.00041095,120]
[405373427,1771093957494,-500.0,0.00041095,120]
[405373428,1771093957503,-500.0,0.00041095,120]
[405373429,1771093957513,-500.0,0.00041095,120]
[405373430,1771093957523,-500.0,0.00041095,120]
[405373431,1771093957533,-500.0,0.00041095,120]
[405373432,1771093957542,-665.99,0.00041095,120]
[405373433,1771093957551,-500.0,0.00041095,120]
[405373434,1771093957560,-500.0,0.00041095,120]
[405373435,1771093957570,-500.0,0.00041095,120]
[405373436,1771093957579,-500.0,0.00041095,120]
[405373437,1771093957589,-500.0,0.00041095,120]
[405373438,1771093957598,-516.7,0.00041095,9]
[405373439,1771093957607,-516.7,0.00041095,9]
[405373440,1771093957616,-512.2,0.00041095,120]
[405373441,1771093957626,-516.7,0.00041095,9]
[405373442,1771093957635,-516.7,0.00041095,9]
[405373443,1771093957644,-516.7,0.00041095,9]
[405373444,1771093957654,-516.7,0.00041095,9]
[405373445,1771093957663,-516.7,0.00041095,9]
[405373446,1771093957672,-516.7,0.00041095,9]
[405373447,1771093957681,-500.0,0.00041095,120]
[405373448,1771093957691,-516.7,0.00041095,9]
[405373449,1771093957702,-516.7,0.00041095,9]
[405373450,1771093957714,-516.7,0.00041095,120]
[405373451,1771093957725,-500.0,0.00041095,120]
[405373452,1771093957735,-500.0,0.00041095,120]
[405373453,1771093957744,-500.0,0.00041095,120]
[405373454,1771093957754,-3417.97,0.00041095,120]
[405373455,1771093957763,-500.0,0.00041095,120]
[405373456,1771093957773,-500.0,0.00041095,120]
[405373457,1771093957782,-500.0,0.00041095,120]
[405373458,1771093957794,-500.0,0.00041095,120]
[405373459,1771093957805,-5149.98,0.00041095,120]
[405373460,1771093957815,-500.0,0.00041095,120]
[405373461,1771093957825,-500.0,0.00041095,120]
[405373462,1771093957835,-3403.19,0.00041095,120]
[405373463,1771093957847,-500.0,0.00041095,120]
[405373464,1771093957858,-538.62,0.00041095,120]
[405373465,1771093957867,-500.0,0.00041095,120]
[405373466,1771093957878,-208.76422759,0.00041095,120]
[405373467,1771093957889,-652.40288122,0.00041095,120]
[405373468,1771093957899,-500.0,0.00041095,120]
[405373469,1771093957910,-500.0,0.00041095,120]
[405373470,1771093957920,-556.88,0.00041095,120]
[405373471,1771093957930,-5585.82,0.00041095,120]
[405373472,1771093957939,-561.54,0.00041095,60]
[405373473,1771093957949,-1233.52,0.00041095,120]
[405373474,1771093957959,-500.0,0.00041095,120]
[405373475,1771093957969,-500.0,0.00041095,120]
[405373476,1771093957979,-540.9,0.00041095,2]
[405373477,1771093957989,-711.16,0.00041095,120]
[405373478,1771093957999,-396.38590035,0.00041095,120]
[405373479,1771093958008,-500.0,0.00041095,120]
[405373480,1771093958018,-524.45,0.00041095,120]
[405373481,1771093958028,-500.0,0.00041095,120]
[405373482,1771093958039,-885.44,0.00041095,120]
[405373483,1771093958049,-500.0,0.00041095,120]
[405373484,1771093958059,-500.0,0.00041095,99]
[405373485,1771093958069,-2840.08,0.00041095,90]
[405373486,1771093958079,-500.0,0.00041095,120]
[405373487,1771093958088,-500.0,0.00041095,120]
[405373488,1771093958099,-500.0,0.00041095,120]
[405373489,1771093958109,-500.06,0.00041095,120]
[405373490,1771093958119,-500.0,0.00041095,120]
[405373491,1771093958129,-500.0,0.00041095,120]
[405373492,1771093958139,-500.0,0.00041095,120]
[405373493,1771093958149,-500.0,0.00041095,120]
[405373494,1771093958159,-3032.83,0.00041095,120]
[405373495,1771093958169,-500.0,0.00041095,120]
[405373496,1771093958179,-3433.22,0.00041095,120]
[405373497,1771093958190,-631.89,0.00041095,120]
[405373498,1771093958199,-500.0,0.00041095,120]
[405373499,1771093958209,-500.0,0.00041095,120]
[405373500,1771093958219,-500.0,0.00041095,120]
[405373501,1771093958229,-205.97664886,0.00041095,120]
[405373502,1771093958239,-500.0,0.00041095,120]
[405373503,1771093958249,-500.0,0.00041095,120]
[405373504,1771093958260,-228.8124882,0.00041095,120]
[405373505,1771093958270,-500.0,0.00041095,120]
[405373506,1771093958280,-536.87627738,0.00041095,120]
[405373507,1771093958290,-3775.51,0.00041095,120]
[405373508,1771093958301,-500.0,0.00041095,120]
[405373509,1771093958311,-232.87897387,0.00041095,120]
[405373510,1771093958322,-500.0,0.00041095,120]
[405373511,1771093958331,-582.71906901,0.00041095,120]
[405373512,1771093958340,-1984.08,0.00041095,120]
[405373513,1771093958351,-500.0,0.00041095,120]
[405373514,1771093958361,-500.0,0.00041095,120]
[405373515,1771093958371,-500.0,0.00041095,120]
[405373516,1771093958381,-207.57669039,0.00041095,120]
[405373517,1771093958391,-500.0,0.00041095,120]
[405373518,1771093958400,-3890.45,0.00041095,120]
[405373519,1771093958412,-500.0,0.00041095,120]
[405373520,1771093958425,-500.0,0.00041095,120]
[405373521,1771093958435,-500.0,0.00041095,120]
[405373522,1771093958445,-4088.99,0.00041095,120]
[405373523,1771093958455,-500.0,0.00041095,120]
[405373524,1771093958465,-500.0,0.00041095,120]
[405373525,1771093958475,-500.0,0.00041095,120]
[405373526,1771093958485,-500.0,0.00041095,120]
[405373527,1771093958498,-500.0,0.00041095,120]
[405373528,1771093958508,-870.9,0.00041095,120]
[405373529,1771093958519,-500.0,0.00041095,2]
[405373530,1771093958529,-500.0,0.00041095,120]
[405373531,1771093958540,-710.66,0.00041095,120]
[405373532,1771093958550,-500.0,0.00041095,120]
[405373533,1771093958560,-642.2489585,0.00041095,90]
[405373534,1771093958570,-3872.17,0.00041095,120]
[405373535,1771093958580,-500.0,0.00041095,120]
[405373536,1771093958592,-500.0,0.00041095,120]
[405373537,1771093958602,-215.85442927,0.00041095,120]
[405373538,1771093958613,-1999.0,0.00041095,120]
[405373539,1771093958623,-577.68,0.00041095,120]
[405373540,1771093958633,-375.84695015,0.00041095,120]
[405373541,1771093958643,-500.0,0.00041095,120]
[405373542,1771093958653,-500.0,0.00041095,120]
[405373543,1771093958667,-500.0,0.00041095,120]
[405373544,1771093958677,-500.0,0.00041095,120]
[405373545,1771093958687,-500.0,0.00041095,120]
[405373546,1771093958697,-500.0,0.00041095,14]
[405373547,1771093958707,-5100.22,0.00041095,120]
[405373548,1771093958717,-500.0,0.00041095,120]
[405373549,1771093958727,-10810.91,0.00041095,120]
[405373550,1771093958738,-4011.27,0.00041095,120]
[405373551,1771093958748,-4569.78,0.00041095,120]
[405373552,1771093958759,-500.0,0.00041095,120]
[405373553,1771093958769,-3982.43,0.00041095,120]
[405373554,1771093958779,-500.0,0.00041095,120]
[405373555,1771093958789,-500.0,0.00041095,120]
[405373556,1771093958799,-945.81,0.00041095,120]
[405373557,1771093958810,-300.0,0.00041095,2]
[405373558,1771093958820,-5326.62,0.00041095,120]
[405373559,1771093958830,-1374.78,0.00041095,120]
[405373560,1771093958841,-4059.63,0.00041095,120]
[405373561,1771093958850,-500.0,0.00041095,120]
[405373562,1771093958860,-3578.35,0.00041095,120]
[405373563,1771093958871,-500.0,0.00041095,120]
[405373564,1771093958881,-500.0,0.00041095,120]
[405373565,1771093958891,-5981.56,0.00041095,120]
[405373566,1771093958901,-500.0,0.00041095,120]
[405373567,1771093958911,-500.0,0.00041095,120]
[405373568,1771093958922,-5562.93,0.00041095,120]
[405373569,1771093958932,-3804.91,0.00041095,120]
[405373570,1771093958943,-586.95626316,0.00041095,120]
[405373571,1771093958954,-3292.7,0.00041095,120]
[405373572,1771093958965,-10011.46,0.00041095,120]
[405373573,1771093958976,-500.0,0.00041095,120]
[405373574,1771093958986,-500.0,0.00041095,120]
[405373575,1771093958996,-150.0,0.00041095,120]
[405373576,1771093959008,-5698.9,0.00041095,120]
[405373577,1771093959019,-618.1,0.00041095,120]
[405373578,1771093959030,-500.0,0.00041095,120]
[405373579,1771093959041,-500.0,0.00041095,120]
[405373580,1771093959051,-500.0,0.00041095,120]
[405373581,1771093959062,-500.0,0.00041095,120]
[405373582,1771093959073,-352.78525502,0.00041095,120]